fUST/lending_fUST_20250927
["ID","MTS","AMOUNT","RATE_DAILY","PERIOD"]
[387861266,1758931863246,-500.0,0.0004767,120]
[387861267,1758931863256,-500.0,0.0004767,120]
[387861268,1758931863266,-500.0,0.0004767,120]
[387861269,1758931863276,-500.0,0.0004767,120]
[387861270,1758931863286,-500.0,0.0004767,120]
[387861271,1758931863295,-200.0,0.0004767,120]
[387861272,1758931863305,-200.0,0.0004767,120]
[387861273,1758931863315,-200.0,0.0004767,120]
[387861274,1758931863324,-200.0,0.0004767,120]
[387861275,1758931863334,-500.0,0.0004767,120]
[387861276,1758931863343,-500.0,0.0004767,120]
[387861277,1758931863353,-200.0,0.0004767,120]
[387861278,1758931863364,-500.0,0.0004767,120]
[387861279,1758931863374,-200.0,0.0004767,120]
[387861280,1758931863384,-500.0,0.0004767,120]
[387861281,1758931863394,-200.0,0.0004767,120]
[387861282,1758931863404,-151.0,0.0004767,120]
[387861283,1758931863420,-4350.71,0.0004767,120]
[387861284,1758931863430,-151.0,0.0004767,120]
[387861285,1758931863440,-151.0,0.0004767,120]
[387861286,1758931863450,-151.0,0.0004767,120]
[387861287,1758931863460,-151.0,0.0004767,120]
[387861288,1758931863470,-151.0,0.0004767,120]
[387861289,1758931863480,-151.0,0.0004767,120]
[387861290,1758931863490,-350.0,0.0004767,120]
[387861291,1758931863500,-151.0,0.0004767,120]
[387861292,1758931863510,-350.0,0.0004767,120]
[387861293,1758931863520,-151.0,0.0004767,120]
[387861294,1758931863531,-350.0,0.0004767,120]
[387861295,1758931863543,-350.0,0.0004767,120]
[387861296,1758931863553,-350.0,0.0004767,120]
[387861297,1758931863563,-350.0,0.0004767,120]
[387861298,1758931863573,-350.0,0.0004767,120]
[387861299,1758931863582,-992.34,0.0004767,120]
[387861300,1758931863592,-480.0,0.00047671,120]
[387861301,1758931863602,-480.0,0.00047671,120]
[387861302,1758931863612,-480.0,0.00047671,120]
[387861303,1758931863622,-517.13919498,0.00047671,120]
[387861304,1758931863631,-652.45,0.00047671,120]
[387861305,1758931863641,-480.0,0.00047671,120]
[387861306,1758931863651,-437.59612358,0.00047671,120]
[387861307,1758931863661,-480.0,0.00047671,120]
[387861308,1758931863672,-480.0,0.00047671,120]
[387861309,1758931863683,-480.0,0.00047671,120]
[387861310,1758931863693,-725.35,0.00047671,120]
[387861311,1758931863703,-480.0,0.00047671,120]
[387861312,1758931863713,-823.76,0.00047671,120]
[387861313,1758931863723,-494.10844099,0.00047671,120]
[387861314,1758931863733,-480.0,0.00047671,120]
[387861315,1758931863744,-480.0,0.00047671,120]
[387861316,1758931863754,-751.19,0.00047671,120]
[387861317,1758931863764,-480.0,0.00047671,120]
[387861318,1758931863774,-480.0,0.00047671,120]
[387861319,1758931863784,-391.3920224,0.00047671,120]
[387861320,1758931863794,-582.06,0.00047671,120]
[387861321,1758931863803,-480.0,0.00047671,120]
[387861322,1758931863813,-716.75,0.00047671,120]
[387861323,1758931863823,-480.0,0.00047671,120]
[387861324,1758931863833,-480.0,0.00047671,120]
[387861325,1758931863843,-847.29,0.00047671,120]
[387861326,1758931863853,-480.0,0.00047671,120]
[387861327,1758931863863,-480.0,0.00047671,120]
[387861328,1758931863873,-480.0,0.00047671,120]
[387861329,1758931863883,-480.0,0.00047671,120]
[387861330,1758931863893,-483.64749167,0.00047671,120]
[387861331,1758931863903,-480.0,0.00047671,120]
[387861332,1758931863912,-480.0,0.00047671,120]
[387861333,1758931863923,-515.75478386,0.00047671,120]
[387861334,1758931863933,-499.45,0.00047671,120]
[387861335,1758931863943,-480.0,0.00047671,120]
[387861336,1758931863953,-606.53,0.00047671,120]
[387861337,1758931863963,-480.0,0.00047671,120]
[387861338,1758931863972,-480.0,0.00047671,120]
[387861339,1758931863982,-1099.68,0.00047671,120]
[387861340,1758931863992,-480.0,0.00047671,120]
[387861341,1758931864003,-480.0,0.00047671,120]
[387861342,1758931864013,-1147.9,0.00047671,120]
[387861343,1758931864023,-1064.79,0.00047671,120]
[387861344,1758931864032,-747.18,0.00047671,120]
[387861345,1758931864042,-480.0,0.00047671,120]
[387861346,1758931864052,-480.0,0.00047671,120]
[387861347,1758931864061,-480.0,0.00047671,120]
[387861348,1758931864071,-1462.51,0.00047671,120]
[387861349,1758931864081,-480.0,0.00047671,120]
[387861350,1758931864092,-480.0,0.00047671,120]
[387861351,1758931864101,-641.87,0.00047671,120]
[387861352,1758931864111,-480.0,0.00047671,120]
[387861353,1758931864121,-480.0,0.00047671,120]
[387861354,1758931864130,-1214.82,0.00047671,120]
[387861355,1758931864140,-480.0,0.00047671,120]
[387861356,1758931864151,-480.0,0.00047671,120]
[387861357,1758931864161,-480.0,0.00047671,120]
[387861358,1758931864174,-480.0,0.00047671,120]
[387861359,1758931864184,-523.68,0.00047671,120]
[387861360,1758931864194,-1047.97,0.00047671,120]
[387861361,1758931864208,-971.16,0.00047671,120]
[387861362,1758931864219,-480.0,0.00047671,120]
[387861363,1758931864230,-853.87,0.00047671,120]
[387861364,1758931864240,-480.0,0.00047671,120]
[387861365,1758931864250,-480.0,0.00047671,120]
[387861366,1758931864260,-985.42,0.00047671,120]
[387861367,1758931864270,-1999.9,0.00047671,120]
[387861368,1758931864280,-480.0,0.00047671,120]
[387861369,1758931864291,-480.0,0.00047671,120]
[387861370,1758931864302,-158.08259893,0.00047671,120]
[387861371,1758931864312,-694.17,0.00047671,120]
[387861372,1758931864323,-1309.64,0.00047671,120]
[387861373,1758931864333,-480.0,0.00047671,120]
[387861374,1758931864343,-480.0,0.00047671,120]
[387861375,1758931864352,-480.0,0.00047671,120]
[387861376,1758931864362,-506.55,0.00047671,120]
[387861377,1758931864372,-1015.97,0.00047671,120]
[387861378,1758931864382,-836.45,0.00047671,120]
[387861379,1758931864392,-801.6,0.00047671,120]
[387861380,1758931864402,-480.0,0.00047671,120]
[387861381,1758931864414,-480.0,0.00047671,120]
[387861382,1758931864425,-501.98,0.00047671,120]
[387861383,1758931864435,-572.34,0.00047671,120]
[387861384,1758931864444,-480.0,0.00047671,120]
[387861385,1758931864456,-880.49,0.00047671,120]
[387861386,1758931864466,-480.0,0.00047671,120]
[387861387,1758931864476,-480.0,0.00047671,120]
[387861388,1758931864487,-480.0,0.00047671,120]
[387861389,1758931864498,-480.0,0.00047671,120]
[387861390,1758931864508,-480.0,0.00047671,120]
[387861391,1758931864518,-516.1,0.00047671,120]
[387861392,1758931864528,-765.11,0.00047671,120]
[387861393,1758931864537,-560.56,0.00047671,120]
[387861394,1758931864547,-480.0,0.00047671,120]
[387861395,1758931864557,-480.0,0.00047671,120]
[387861396,1758931864567,-480.0,0.00047671,120]
[387861397,1758931864578,-768.16,0.00047671,120]
[387861398,1758931864588,-480.0,0.00047671,120]
[387861399,1758931864598,-480.0,0.00047671,120]
[387861400,1758931864608,-480.0,0.00047671,120]
[387861401,1758931864618,-446.22848692,0.00047671,120]
[387861402,1758931864628,-480.0,0.00047671,120]
[387861403,1758931864638,-533.64,0.00047671,120]
[387861404,1758931864648,-1366.15,0.00047671,120]
[387861405,1758931864659,-565.045141,0.00047671,120]
[387861406,1758931864669,-480.0,0.00047671,120]
[387861407,1758931864680,-480.0,0.00047671,120]
[387861408,1758931864690,-1008.69,0.00047671,120]
[387861409,1758931864700,-480.0,0.00047671,120]
[387861410,1758931864710,-480.0,0.00047671,120]
[387861411,1758931864720,-545.16,0.00047671,120]
[387861412,1758931864730,-545.16,0.00047671,120]
[387861413,1758931864740,-480.0,0.00047671,120]
[387861414,1758931864750,-488.06,0.00047671,120]
[387861415,1758931864760,-480.0,0.00047671,120]
[387861416,1758931864770,-295.46385227,0.00047671,120]
[387861417,1758931864780,-961.32,0.00047671,120]
[387861418,1758931864790,-529.38,0.00047671,120]
[387861419,1758931864800,-480.0,0.00047671,120]
[387861420,1758931864809,-480.0,0.00047671,120]
[387861421,1758931864819,-2103.06,0.00047671,120]
[387861422,1758931864828,-1138.42,0.00047671,120]
[387861423,1758931864838,-1891.6,0.00047671,120]
[387861424,1758931864847,-503.64532276,0.00047671,120]
[387861425,1758931864857,-1748.61,0.00047671,120]
[387861426,1758931864867,-480.0,0.00047671,120]
[387861427,1758931864877,-480.0,0.00047671,120]
[387861428,1758931864887,-1014.65,0.00047671,120]
[387861429,1758931865079,-480.0,0.00047671,120]
[387861430,1758931865092,-690.89,0.00047671,120]
[387861431,1758931865102,-598.16,0.00047671,120]
[387861432,1758931865112,-480.0,0.00047671,120]
[387861433,1758931865121,-522.12259843,0.00047671,120]
[387861434,1758931865130,-480.0,0.00047671,120]
[387861435,1758931865139,-480.0,0.00047671,120]
[387861436,1758931865148,-483.95,0.00047671,120]
[387861437,1758931865159,-480.0,0.00047671,120]
[387861438,1758931865168,-1029.29,0.00047671,120]
[387861439,1758931865177,-480.0,0.00047671,120]
[387861440,1758931865187,-480.0,0.00047671,120]
[387861441,1758931865196,-480.0,0.00047671,120]
[387861442,1758931865206,-571.33,0.00047671,120]
[387861443,1758931865215,-480.0,0.00047671,120]
[387861444,1758931865225,-1772.96,0.00047671,120]
[387861445,1758931865234,-604.34,0.00047671,120]
[387861446,1758931865243,-480.0,0.00047671,120]
[387861447,1758931865252,-1382.47,0.00047671,120]
[387861448,1758931865261,-480.0,0.00047671,120]
[387861449,1758931865271,-1069.13,0.00047671,120]
[387861450,1758931865280,-480.0,0.00047671,120]
[387861451,1758931865289,-480.0,0.00047671,120]
[387861452,1758931865299,-212.62,0.00047671,120]
[387861453,1758931865308,-622.73,0.00047671,120]
[387861454,1758931865319,-412.69482369,0.00047671,120]
[387861455,1758931865329,-480.0,0.00047671,120]
[387861456,1758931865338,-865.78,0.00047671,120]
[387861457,1758931865348,-500.0,0.00047671,120]
[387861458,1758931865357,-480.0,0.00047671,120]
[387861459,1758931865367,-480.0,0.00047671,120]
[387861460,1758931865377,-480.0,0.00047671,120]
[387861461,1758931865386,-2497.39,0.00047671,120]
[387861462,1758931865395,-480.0,0.00047671,120]
[387861463,1758931865406,-480.0,0.00047671,120]
[387861464,1758931865419,-480.0,0.00047671,120]
[387861465,1758931865430,-480.0,0.00047671,120]
[387861466,1758931865439,-3990.68,0.00047671,120]
[387861467,1758931865449,-480.0,0.00047671,120]
[387861468,1758931865459,-480.0,0.00047671,120]
[387861469,1758931865469,-1497.79,0.00047671,120]
[387861470,1758931865479,-623.66,0.00047671,120]
[387861471,1758931865489,-480.0,0.00047671,120]
[387861472,1758931865499,-480.0,0.00047671,120]
[387861473,1758931865510,-480.0,0.00047671,120]
[387861474,1758931865524,-792.54,0.00047671,120]
[387861475,1758931865533,-480.0,0.00047671,120]
[387861476,1758931865543,-480.0,0.00047671,120]
[387861477,1758931865553,-480.0,0.00047671,120]
[387861478,1758931865562,-480.0,0.00047671,120]
[387861479,1758931865572,-480.0,0.00047671,120]
[387861480,1758931865582,-1571.66,0.00047671,120]
[387861481,1758931865592,-1012.15,0.00047671,120]
[387861482,1758931865602,-480.0,0.00047671,120]
[387861483,1758931865611,-582.02,0.00047671,120]
[387861484,1758931865620,-480.0,0.00047671,120]
[387861485,1758931865630,-1420.95,0.00047671,120]
[387861486,1758931865639,-359.96506007,0.00047671,120]
[387861487,1758931865649,-1415.9,0.00047671,120]
[387861488,1758931865659,-571.53,0.00047671,120]
[387861489,1758931865668,-480.0,0.00047671,120]
[387861491,1758931865678,-480.0,0.00047671,120]
[387861492,1758931865687,-480.0,0.00047671,120]
[387861494,1758931865697,-661.82,0.00047671,120]
[387861495,1758931865707,-711.54,0.00047671,120]
[387861497,1758931865716,-608.9,0.00047671,120]
[387861499,1758931865726,-1357.32,0.00047671,120]
[387861501,1758931865735,-3543.12,0.00047671,120]
[387861502,1758931865745,-480.0,0.00047671,120]
[387861503,1758931865754,-1098.48,0.00047671,120]
[387861504,1758931865763,-500.0,0.00047671,14]
[387861505,1758931865773,-480.0,0.00047671,120]
[387861506,1758931865783,-480.0,0.00047671,120]
[387861508,1758931865792,-480.0,0.00047671,120]
[387861510,1758931865803,-1097.02,0.00047671,120]
[387861511,1758931865812,-480.0,0.00047671,120]
[387861512,1758931865821,-807.05,0.00047671,120]
[387861513,1758931865831,-168.99848202,0.00047671,120]
[387861514,1758931865840,-480.0,0.00047671,120]
[387861515,1758931865850,-480.0,0.00047671,120]
[387861516,1758931865859,-1081.54,0.00047671,120]
[387861517,1758931865869,-480.0,0.00047671,120]
[387861518,1758931865878,-480.0,0.00047671,120]
[387861519,1758931865887,-9971.98,0.00047671,120]
[387861520,1758931865897,-480.0,0.00047671,120]
[387861521,1758931865907,-649.55,0.00047671,120]
[387861523,1758931865916,-4462.38,0.00047671,3]
[387861525,1758931865927,-10430.65,0.00047671,120]
[387861526,1758931865936,-480.0,0.00047671,120]
[387861527,1758931865946,-2702.06,0.00047671,120]
[387861528,1758931865955,-480.0,0.00047671,120]
[387861529,1758931865964,-480.0,0.00047671,120]
[387861530,1758931865973,-480.0,0.00047671,120]
[387861531,1758931865983,-162.59588824,0.00047671,120]
[387861532,1758931865992,-480.0,0.00047671,120]
[387861533,1758931866002,-2055.04,0.00047671,120]
[387861535,1758931866011,-3405.64,0.00047671,120]
[387861536,1758931866020,-480.0,0.00047671,120]
[387861537,1758931866029,-524.82,0.00047671,120]
[387861538,1758931866039,-755.1,0.00047671,120]
[387861539,1758931866049,-642.28,0.00047671,120]
[387861540,1758931866058,-4483.5,0.00047671,120]
[387861541,1758931866067,-772.16,0.00047671,30]
[387861542,1758931866077,-494.99187696,0.00047671,120]
[387861543,1758931866087,-760.25,0.00047671,120]
[387861544,1758931866096,-2365.79,0.00047671,120]
[387861545,1758931866105,-811.62,0.00047671,120]
[387861546,1758931866115,-480.0,0.00047671,120]
[387861547,1758931866125,-576.88,0.00047671,120]
[387861548,1758931866134,-679.43,0.00047671,120]
[387861549,1758931866143,-480.0,0.00047671,120]
[387861550,1758931866152,-811.86,0.00047671,120]
[387861551,1758931866162,-480.0,0.00047671,120]
[387861552,1758931866171,-3497.99,0.00047671,120]
[387861554,1758931866181,-546.05,0.00047671,120]
[387861555,1758931866190,-480.0,0.00047671,120]
[387861556,1758931866199,-480.0,0.00047671,120]
[387861557,1758931866209,-480.0,0.00047671,120]
[387861558,1758931866218,-480.0,0.00047671,120]
[387861559,1758931866227,-480.0,0.00047671,120]
[387861560,1758931866236,-2492.31,0.00047671,120]
[387861561,1758931866246,-470.87478849,0.00047671,120]
[387861562,1758931866258,-981.92,0.00047671,120]
[387861563,1758931866268,-858.58,0.00047671,120]
[387861564,1758931866278,-480.0,0.00047671,120]
[387861565,1758931866287,-480.0,0.00047671,120]
[387861566,1758931866297,-536.78,0.00047671,120]
[387861567,1758931866306,-1743.2,0.00047671,120]
[387861568,1758931866316,-480.0,0.00047671,120]
[387861569,1758931866325,-480.0,0.00047671,120]
[387861570,1758931866335,-4717.61,0.00047671,120]
[387861571,1758931866346,-480.0,0.00047671,120]
[387861573,1758931866355,-480.0,0.00047671,120]
[387861574,1758931866364,-853.28,0.00047671,120]
[387861575,1758931866373,-480.0,0.00047671,120]
[387861576,1758931866382,-767.4,0.00047671,120]
[387861577,1758931866392,-842.14,0.00047671,120]
[387861578,1758931866401,-2623.9,0.00047671,30]
[387861579,1758931866410,-1203.55,0.00047671,120]
[387861580,1758931866422,-18460.88,0.00047671,120]
[387861581,1758931866433,-1092.42,0.00047671,120]
[387861582,1758931866442,-596.68,0.00047671,120]
[387861583,1758931866452,-5129.78,0.00047671,120]
[387861584,1758931866463,-869.5,0.00047671,120]
[387861585,1758931866472,-557.48,0.00047671,120]
[387861586,1758931866482,-750.93,0.00047671,120]
[387861587,1758931866494,-480.0,0.00047671,120]
[387861588,1758931866505,-480.0,0.00047671,120]
[387861589,1758931866514,-1759.3,0.00047671,120]
[387861590,1758931866525,-503.94,0.00047671,120]
[387861592,1758931866535,-942.05,0.00047671,120]
[387861593,1758931866544,-1400.99,0.00047671,120]
[387861594,1758931866554,-9594.99,0.00047671,120]
[387861595,1758931866564,-480.0,0.00047671,120]
[387861596,1758931866573,-988.16,0.00047671,120]
[387861597,1758931866583,-1293.22,0.00047671,120]
[387861598,1758931866592,-480.0,0.00047671,120]
[387861599,1758931866601,-512.41,0.00047671,120]
[387861600,1758931866610,-1484.46,0.00047671,120]
[387861601,1758931866620,-480.0,0.00047671,120]
[387861602,1758931866629,-1648.98,0.00047671,120]
[387861603,1758931866638,-480.0,0.00047671,120]
[387861604,1758931866647,-1870.12,0.00047671,120]
[387861605,1758931866656,-480.0,0.00047671,120]
[387861606,1758931866665,-1799.49,0.00047671,120]
[387861607,1758931866675,-480.0,0.00047671,120]
[387861608,1758931866684,-2180.83,0.00047671,21]
[387861609,1758931866693,-1278.33,0.00047671,120]
[387861610,1758931866702,-929.02,0.00047671,120]
[387861611,1758931866713,-668.55,0.00047671,120]
[387861612,1758931866722,-7070.83,0.00047671,120]
[387861614,1758931866732,-2531.33,0.00047671,120]
[387861615,1758931866741,-1838.84,0.00047671,120]
[387861616,1758931866750,-2097.19,0.00047671,120]
[387861617,1758931866760,-1130.74,0.00047671,120]
[387861618,1758931866769,-1770.1,0.00047671,120]
[387861619,1758931866779,-966.58,0.00047671,120]
[387861620,1758931866788,-2553.64,0.00047671,120]
[387861621,1758931866797,-1080.52,0.00047671,120]
[387861622,1758931866807,-2115.12,0.00047671,120]
[387861623,1758931866816,-480.0,0.00047671,120]
[387861624,1758931866826,-480.0,0.00047671,120]
[387861625,1758931866835,-1498.56,0.00047671,120]
[387861626,1758931866844,-480.0,0.00047671,120]
[387861627,1758931866853,-480.0,0.00047671,120]
[387861628,1758931866862,-480.0,0.00047671,120]
[387861629,1758931866871,-2085.3,0.00047671,120]
[387861630,1758931866880,-374.06521008,0.00047671,120]
[387861631,1758931866889,-2256.75,0.00047671,120]
[387861632,1758931866898,-480.0,0.00047671,120]
[387861633,1758931866907,-480.0,0.00047671,120]
[387861634,1758931866916,-480.0,0.00047671,120]
[387861635,1758931866925,-890.94,0.00047671,120]
[387861636,1758931866934,-884.22,0.00047671,120]
[387861637,1758931866943,-9281.75,0.00047671,120]
[387861638,1758931866952,-574.04,0.00047671,120]
[387861639,1758931866961,-1701.24,0.00047671,120]
[387861640,1758931866971,-480.0,0.00047671,120]
[387861641,1758931866980,-546.43,0.00047671,120]
[387861642,1758931866989,-480.0,0.00047671,120]
[387861643,1758931866998,-1322.19,0.00047671,120]
[387861644,1758931867007,-822.45,0.00047671,120]
[387861645,1758931867016,-480.0,0.00047671,120]
[387861646,1758931867025,-2550.27,0.00047671,120]
[387861647,1758931867034,-6013.07,0.00047671,120]
[387861648,1758931867043,-219.1,0.00047694,120]
[387861649,1758931867054,-1000.0,0.00047874,60]
[387861650,1758931867065,-244.0,0.00047874,60]
[387861651,1758931867074,-684.67,0.00047944,120]
[387861652,1758931867083,-1938.1,0.00047944,120]
[387861653,1758931867092,-480.0,0.00047944,120]
[387861654,1758931867103,-4350.71,0.00047944,120]
[387861655,1758931867112,-992.34,0.00047944,120]
[387861656,1758931867121,-480.0,0.00047945,120]
[387861657,1758931867130,-480.0,0.00047945,120]
[387861658,1758931867139,-480.0,0.00047945,120]
[387861659,1758931867148,-652.45,0.00047945,120]
[387861660,1758931867158,-480.0,0.00047945,120]
[387861661,1758931867167,-480.0,0.00047945,120]
[387861662,1758931867176,-480.0,0.00047945,120]
[387861663,1758931867186,-725.35,0.00047945,120]
[387861664,1758931867195,-480.0,0.00047945,120]
[387861665,1758931867205,-823.76,0.00047945,120]
[387861666,1758931867215,-480.0,0.00047945,120]
[387861667,1758931867224,-480.0,0.00047945,120]
[387861668,1758931867234,-751.19,0.00047945,120]
[387861669,1758931867244,-480.0,0.00047945,120]
[387861670,1758931867253,-224.21850892,0.00047945,120]
[387861671,1758931867262,-582.06,0.00047945,120]
[387861672,1758931867271,-716.75,0.00047945,120]
[387861673,1758931867280,-480.0,0.00047945,120]
[387861674,1758931867289,-480.0,0.00047945,120]
[387861675,1758931867299,-847.29,0.00047945,120]
[387861676,1758931867308,-471.79325336,0.00047945,120]
[387861677,1758931867318,-480.0,0.00047945,120]
[387861678,1758931867327,-401.63083528,0.00047945,120]
[387861679,1758931867337,-480.0,0.00047945,120]
[387861680,1758931867346,-500.0,0.00047945,60]
[387861681,1758931867404,-480.0,0.00047945,120]
[387861682,1758931867416,-480.0,0.00047945,120]
[387861683,1758931867426,-499.45,0.00047945,120]
[387861684,1758931867435,-480.0,0.00047945,120]
[387861685,1758931867444,-606.53,0.00047945,120]
[387861686,1758931867454,-480.0,0.00047945,120]
[387861687,1758931867463,-480.0,0.00047945,120]
[387861688,1758931867472,-1099.68,0.00047945,120]
[387861689,1758931867481,-480.0,0.00047945,120]
[387861690,1758931867490,-480.0,0.00047945,120]
[387861691,1758931867499,-1147.9,0.00047945,120]
[387861692,1758931867508,-1064.79,0.00047945,120]
[387861694,1758931867518,-747.18,0.00047945,120]
[387861695,1758931867527,-480.0,0.00047945,120]
[387861696,1758931867537,-480.0,0.00047945,120]
[387861697,1758931867546,-480.0,0.00047945,120]
[387861698,1758931867555,-1462.51,0.00047945,120]
[387861699,1758931867564,-480.0,0.00047945,120]
[387861700,1758931867572,-480.0,0.00047945,120]
[387861701,1758931867581,-641.87,0.00047945,120]
[387861702,1758931867591,-480.0,0.00047945,120]
[387861703,1758931867599,-480.0,0.00047945,120]
[387861704,1758931867608,-1214.82,0.00047945,120]
[387861705,1758931867618,-480.0,0.00047945,120]
[387861706,1758931867627,-480.0,0.00047945,120]
[387861707,1758931867635,-480.0,0.00047945,120]
[387861709,1758931867645,-480.0,0.00047945,120]
[387861711,1758931867655,-523.68,0.00047945,120]
[387861713,1758931867664,-1047.97,0.00047945,120]
[387861715,1758931867674,-971.16,0.00047945,120]
[387861717,1758931867684,-480.0,0.00047945,120]
[387861719,1758931867694,-853.87,0.00047945,120]
[387861721,1758931867703,-480.0,0.00047945,120]
[387861723,1758931867713,-573.36059779,0.00047945,120]
[387861725,1758931867722,-985.42,0.00047945,120]
[387861727,1758931867731,-1999.9,0.00047945,120]
[387861729,1758931867740,-480.0,0.00047945,120]
[387861731,1758931867750,-480.0,0.00047945,120]
[387861733,1758931867759,-694.17,0.00047945,120]
[387861735,1758931867768,-1309.64,0.00047945,120]
[387861737,1758931867778,-480.0,0.00047945,120]
[387861739,1758931867789,-480.0,0.00047945,120]
[387861741,1758931867798,-480.0,0.00047945,120]
[387861743,1758931867808,-506.55,0.00047945,120]
[387861745,1758931867817,-1015.97,0.00047945,120]
[387861747,1758931867826,-836.45,0.00047945,120]
[387861749,1758931867836,-801.6,0.00047945,120]
[387861751,1758931867846,-480.0,0.00047945,120]
[387861753,1758931867855,-480.0,0.00047945,120]
[387861755,1758931867864,-501.98,0.00047945,120]
[387861757,1758931867873,-572.34,0.00047945,120]
[387861759,1758931867882,-480.0,0.00047945,120]
[387861761,1758931867891,-880.49,0.00047945,120]
[387861763,1758931867900,-480.0,0.00047945,120]
[387861765,1758931867910,-480.0,0.00047945,120]
[387861767,1758931867919,-480.0,0.00047945,120]
[387861769,1758931867928,-480.0,0.00047945,120]
[387861771,1758931867937,-522.82753461,0.00047945,120]
[387861773,1758931867946,-516.1,0.00047945,120]
[387861775,1758931867955,-765.11,0.00047945,120]
[387861777,1758931867964,-560.56,0.00047945,120]
[387861779,1758931867973,-480.0,0.00047945,120]
[387861781,1758931867982,-480.0,0.00047945,120]
[387861783,1758931867991,-480.0,0.00047945,120]
[387861785,1758931868000,-768.16,0.00047945,120]
[387861787,1758931868010,-480.0,0.00047945,120]
[387861789,1758931868019,-480.0,0.00047945,120]
[387861791,1758931868028,-480.0,0.00047945,120]
[387861792,1758931868037,-480.0,0.00047945,120]
[387861794,1758931868046,-533.64,0.00047945,120]
[387861796,1758931868055,-1366.15,0.00047945,120]
[387861798,1758931868064,-480.0,0.00047945,120]
[387861800,1758931868074,-480.0,0.00047945,120]
[387861802,1758931868083,-1008.69,0.00047945,120]
[387861804,1758931868092,-480.0,0.00047945,120]
[387861806,1758931868101,-480.0,0.00047945,120]
[387861808,1758931868111,-545.16,0.00047945,120]
[387861810,1758931868120,-545.16,0.00047945,120]
[387861812,1758931868129,-480.0,0.00047945,120]
[387861814,1758931868139,-480.0,0.00047945,120]
[387861816,1758931868148,-961.32,0.00047945,120]
[387861818,1758931868157,-529.38,0.00047945,120]
[387861820,1758931868167,-480.0,0.00047945,120]
[387861822,1758931868176,-480.0,0.00047945,120]
[387861824,1758931868185,-2103.06,0.00047945,120]
[387861826,1758931868195,-1138.42,0.00047945,120]
[387861828,1758931868204,-1891.6,0.00047945,120]
[387861830,1758931868213,-1748.61,0.00047945,120]
[387861832,1758931868222,-480.0,0.00047945,120]
[387861834,1758931868231,-480.0,0.00047945,120]
[387861836,1758931868241,-1014.65,0.00047945,120]
[387861838,1758931868250,-480.0,0.00047945,120]
[387861840,1758931868259,-690.89,0.00047945,120]
[387861842,1758931868268,-598.16,0.00047945,120]
[387861844,1758931868277,-480.0,0.00047945,120]
[387861846,1758931868286,-480.0,0.00047945,120]
[387861848,1758931868295,-480.0,0.00047945,120]
[387861850,1758931868305,-483.95,0.00047945,120]
[387861852,1758931868314,-480.0,0.00047945,120]